[Event "Titled Tuesday Blitz November 29 Early 2022"]
[White "Paravyan, David"]
[Black "Gorodetzky, David"]
[WhiteFideId "4194985"]
[BlackFideId "2813416"]
[WhiteElo "3058"]
[BlackElo "2858"]
[Result "0-1"]
[Round "06"]
[TimeControl "180+1"]
[Date "2022.11.30"]
[WhiteClock "0:00:01"]
[BlackClock "0:00:05"]

1. e4 {[%clk 0:03:00]}  c6 {[%clk 0:03:00]} 2. d4 {[%clk 0:02:59]}  d5 {[%clk 0:03:01]} 3. e5 {[%clk 0:02:59]}  c5 {[%clk 0:02:55]} 4. Nf3 {[%clk 0:02:59]}  Bg4 {[%clk 0:02:54]} 5. dxc5 {[%clk 0:02:57]}  e6 {[%clk 0:02:54]} 6. Be3 {[%clk 0:02:57]}  Ne7 {[%clk 0:02:51]} 7. c3 {[%clk 0:02:57]}  Nd7 {[%clk 0:02:50]} 8. Bb5 {[%clk 0:02:53]}  Nc6 {[%clk 0:02:41]} 9. Nbd2 {[%clk 0:02:50]}  Bxc5 {[%clk 0:02:22]} 10. Bxc5 {[%clk 0:02:48]}  Nxc5 {[%clk 0:02:20]} 11. O-O {[%clk 0:02:43]}  O-O {[%clk 0:02:17]} 12. h3 {[%clk 0:02:40]}  Bh5 {[%clk 0:02:17]} 13. Bxc6 {[%clk 0:02:37]}  bxc6 {[%clk 0:02:17]} 14. b4 {[%clk 0:02:36]}  Nd7 {[%clk 0:02:09]} 15. Re1 {[%clk 0:02:31]}  c5 {[%clk 0:02:08]} 16. a3 {[%clk 0:02:31]}  Qc7 {[%clk 0:02:06]} 17. Nb3 {[%clk 0:02:08]}  Rfc8 {[%clk 0:02:01]} 18. Rc1 {[%clk 0:01:47]}  Nxe5 {[%clk 0:01:41]} 19. g4 {[%clk 0:01:14]}  Nxf3+ {[%clk 0:01:31]} 20. Qxf3 {[%clk 0:01:15]}  c4 {[%clk 0:01:23]} 21. Nc5 {[%clk 0:00:55]}  Bg6 {[%clk 0:01:21]} 22. h4 {[%clk 0:00:55]}  h6 {[%clk 0:01:20]} 23. Qe3 {[%clk 0:00:41]}  Qe7 {[%clk 0:01:12]} 24. Qg3 {[%clk 0:00:32]}  a5 {[%clk 0:01:10]} 25. Re3 {[%clk 0:00:27]}  axb4 {[%clk 0:01:09]} 26. axb4 {[%clk 0:00:27]}  Ra2 {[%clk 0:01:05]} 27. Rce1 {[%clk 0:00:24]}  Qc7 {[%clk 0:00:53]} 28. Re5 {[%clk 0:00:24]}  Rca8 {[%clk 0:00:45]} 29. h5 {[%clk 0:00:24]}  Bc2 {[%clk 0:00:41]} 30. g5 {[%clk 0:00:21]}  hxg5 {[%clk 0:00:33]} 31. h6 {[%clk 0:00:22]}  f6 {[%clk 0:00:27]} 32. Nxe6 {[%clk 0:00:13]}  Qf7 {[%clk 0:00:20]} 33. R5e3 {[%clk 0:00:07]}  gxh6 {[%clk 0:00:19]} 34. Nd4 {[%clk 0:00:07]}  Be4 {[%clk 0:00:19]} 35. f3 {[%clk 0:00:07]}  f5 {[%clk 0:00:19]} 36. Qd6 {[%clk 0:00:05]}  f4 {[%clk 0:00:18]} 37. R3e2 {[%clk 0:00:06]}  Rxe2 {[%clk 0:00:18]} 38. Rxe2 {[%clk 0:00:07]}  Qh5 {[%clk 0:00:06]} 39. Qe6+ {[%clk 0:00:04]}  Kh7 {[%clk 0:00:06]} 40. Qd7+ {[%clk 0:00:04]}  Kh8 {[%clk 0:00:06]} 41. Kg2 {[%clk 0:00:01]}  g4 {[%clk 0:00:03]} 42. fxe4 {[%clk 0:00:02]}  f3+ {[%clk 0:00:04]} 43. Kg3 {[%clk 0:00:02]}  Qh3+ {[%clk 0:00:04]} 44. Kf4 {[%clk 0:00:02]}  fxe2 {[%clk 0:00:04]} 45. Ne6 {[%clk 0:00:02]}  Qf1+ {[%clk 0:00:03]} 46. Ke5 {[%clk 0:00:03]}  Qf8 {[%clk 0:00:03]} 47. Nxf8 {[%clk 0:00:03]}  Rxf8 {[%clk 0:00:04]} 48. Qd6 {[%clk 0:00:02]}  Kg7 {[%clk 0:00:02]} 49. Qe7+ {[%clk 0:00:02]}  Rf7 {[%clk 0:00:03]} 50. Qe6 {[%clk 0:00:02]}  e1=Q {[%clk 0:00:03]} 51. Qxg4+ {[%clk 0:00:02]}  Kh7 {[%clk 0:00:03]} 52. Kxd5 {[%clk 0:00:03]}  Qf2 {[%clk 0:00:03]} 53. Kxc4 {[%clk 0:00:02]}  Qf1+ {[%clk 0:00:03]} 54. Kc5 {[%clk 0:00:01]}  Qf6 {[%clk 0:00:04]} 55. Qc8 {[%clk 0:00:01]}  Qxc3+ {[%clk 0:00:04]} 56. Kd5 {[%clk 0:00:01]}  Qxc8 {[%clk 0:00:05]} 0-1


[Site "https://www.chess.com"]

[Event "Titled Tuesday Blitz November 29 Early 2022"]
[White "Pinheiro, Iung Alicio de O."]
[Black "Yano, William Jorge Froes"]
[WhiteFideId "2104350"]
[BlackFideId "2112949"]
[WhiteElo "2283"]
[BlackElo "2122"]
[Result "1-0"]
[Round "06"]
[TimeControl "180+1"]
[Date "2022.11.30"]
[WhiteClock "0:00:19"]
[BlackClock "0:00:16"]

1. e4 {[%clk 0:02:59]}  e6 {[%clk 0:03:00]} 2. b3 {[%clk 0:02:58]}  d5 {[%clk 0:03:00]} 3. Bb2 {[%clk 0:02:55]}  Nf6 {[%clk 0:02:59]} 4. e5 {[%clk 0:02:41]}  Nfd7 {[%clk 0:02:59]} 5. f4 {[%clk 0:02:38]}  c5 {[%clk 0:03:00]} 6. Nf3 {[%clk 0:02:36]}  Nc6 {[%clk 0:02:59]} 7. Bb5 {[%clk 0:02:29]}  a6 {[%clk 0:02:40]} 8. Bxc6 {[%clk 0:02:21]}  bxc6 {[%clk 0:02:41]} 9. c4 {[%clk 0:02:18]}  a5 {[%clk 0:02:40]} 10. Nc3 {[%clk 0:02:15]}  Be7 {[%clk 0:02:36]} 11. O-O {[%clk 0:02:14]}  O-O {[%clk 0:02:33]} 12. d3 {[%clk 0:02:13]}  f6 {[%clk 0:02:21]} 13. exf6 {[%clk 0:02:08]}  Nxf6 {[%clk 0:02:21]} 14. Qe2 {[%clk 0:02:07]}  d4 {[%clk 0:02:01]} 15. Na4 {[%clk 0:01:53]}  Ng4 {[%clk 0:01:44]} 16. Ne5 {[%clk 0:01:45]}  Ne3 {[%clk 0:01:33]} 17. Rf3 {[%clk 0:01:20]}  Bd6 {[%clk 0:01:05]} 18. Rxe3 {[%clk 0:01:02]}  dxe3 {[%clk 0:01:03]} 19. Qxe3 {[%clk 0:01:02]}  Qc7 {[%clk 0:00:59]} 20. Re1 {[%clk 0:00:53]}  Rb8 {[%clk 0:00:52]} 21. g3 {[%clk 0:00:48]}  Bd7 {[%clk 0:00:40]} 22. Ba3 {[%clk 0:00:47]}  Be8 {[%clk 0:00:39]} 23. Bxc5 {[%clk 0:00:43]}  Bxc5 {[%clk 0:00:39]} 24. Nxc5 {[%clk 0:00:43]}  Qd6 {[%clk 0:00:24]} 25. Na4 {[%clk 0:00:19]}  Bh5 {[%clk 0:00:22]} 26. Qc5 {[%clk 0:00:18]}  Qd8 {[%clk 0:00:15]} 27. Nxc6 {[%clk 0:00:14]}  Qf6 {[%clk 0:00:15]} 28. Nxb8 {[%clk 0:00:12]}  Rxb8 {[%clk 0:00:16]} 29. Qxh5 {[%clk 0:00:13]}  Rf8 {[%clk 0:00:14]} 30. Qe5 {[%clk 0:00:13]}  Qh6 {[%clk 0:00:14]} 31. Qxe6+ {[%clk 0:00:13]}  Qxe6 {[%clk 0:00:14]} 32. Rxe6 {[%clk 0:00:14]}  Kf7 {[%clk 0:00:15]} 33. Re4 {[%clk 0:00:14]}  Rc8 {[%clk 0:00:15]} 34. d4 {[%clk 0:00:14]}  Kf6 {[%clk 0:00:15]} 35. Kf2 {[%clk 0:00:14]}  Kf5 {[%clk 0:00:15]} 36. Ke3 {[%clk 0:00:15]}  Kf6 {[%clk 0:00:16]} 37. Re5 {[%clk 0:00:15]}  h6 {[%clk 0:00:16]} 38. Nc5 {[%clk 0:00:16]}  a4 {[%clk 0:00:15]} 39. Ne4+ {[%clk 0:00:17]}  Kf7 {[%clk 0:00:15]} 40. Nd6+ {[%clk 0:00:18]}  Kf6 {[%clk 0:00:15]} 41. Nxc8 {[%clk 0:00:18]}  axb3 {[%clk 0:00:16]} 42. axb3 {[%clk 0:00:19]} 1-0


[Site "https://www.chess.com"]

[Event "Titled Tuesday Blitz November 29 Early 2022"]
[White "Pranav, V"]
[Black "Gareyev, Timur"]
[WhiteFideId "25060783"]
[BlackFideId "14200937"]
[WhiteElo "2998"]
[BlackElo "2832"]
[Result "1-0"]
[Round "06"]
[TimeControl "180+1"]
[Date "2022.11.30"]
[WhiteClock "0:01:11"]
[BlackClock "0:00:05"]

1. e4 {[%clk 0:03:00]}  e5 {[%clk 0:02:50]} 2. Nf3 {[%clk 0:03:00]}  Nc6 {[%clk 0:02:47]} 3. Bc4 {[%clk 0:03:00]}  Nf6 {[%clk 0:02:45]} 4. Ng5 {[%clk 0:03:00]}  d5 {[%clk 0:02:41]} 5. exd5 {[%clk 0:03:01]}  Na5 {[%clk 0:02:40]} 6. Bb5+ {[%clk 0:03:00]}  c6 {[%clk 0:02:40]} 7. dxc6 {[%clk 0:03:01]}  bxc6 {[%clk 0:02:40]} 8. Bd3 {[%clk 0:03:01]}  h6 {[%clk 0:02:33]} 9. Ne4 {[%clk 0:02:59]}  Nd5 {[%clk 0:02:32]} 10. O-O {[%clk 0:02:59]}  Nf4 {[%clk 0:02:24]} 11. Be2 {[%clk 0:02:58]}  f5 {[%clk 0:02:21]} 12. Ng3 {[%clk 0:02:57]}  h5 {[%clk 0:02:17]} 13. d4 {[%clk 0:02:47]}  h4 {[%clk 0:02:07]} 14. Bxf4 {[%clk 0:02:46]}  exf4 {[%clk 0:01:59]} 15. Nh5 {[%clk 0:02:05]}  Bd6 {[%clk 0:01:00]} 16. Re1 {[%clk 0:01:51]}  O-O {[%clk 0:00:54]} 17. Qd2 {[%clk 0:01:39]}  Qc7 {[%clk 0:00:40]} 18. b4 {[%clk 0:01:34]}  Nb7 {[%clk 0:00:35]} 19. c4 {[%clk 0:01:31]}  f3 {[%clk 0:00:16]} 20. Bxf3 {[%clk 0:01:28]}  Bxh2+ {[%clk 0:00:16]} 21. Kh1 {[%clk 0:01:29]}  Nd6 {[%clk 0:00:11]} 22. Qg5 {[%clk 0:01:27]}  Ne4 {[%clk 0:00:10]} 23. Bxe4 {[%clk 0:01:18]}  fxe4 {[%clk 0:00:11]} 24. Nc3 {[%clk 0:01:18]}  Bf5 {[%clk 0:00:08]} 25. Nxe4 {[%clk 0:01:16]}  Kh8 {[%clk 0:00:06]} 26. Nef6 {[%clk 0:01:10]}  gxf6 {[%clk 0:00:05]} 27. Qxf5 {[%clk 0:01:11]} 1-0


[Site "https://www.chess.com"]

[Event "Titled Tuesday Blitz November 29 Early 2022"]
[White "Principe, Gerson"]
[Black "Nguyen, Thai Dai Van"]
[WhiteFideId "3804550"]
[BlackFideId "358878"]
[WhiteElo "2280"]
[BlackElo "2534"]
[Result "0-1"]
[Round "06"]
[TimeControl "180+1"]
[Date "2022.11.30"]
[WhiteClock "0:00:12"]
[BlackClock "0:01:19"]

1. d4 {[%clk 0:02:56]}  Nf6 {[%clk 0:02:59]} 2. Nf3 {[%clk 0:02:56]}  d5 {[%clk 0:02:58]} 3. c4 {[%clk 0:02:55]}  e6 {[%clk 0:02:58]} 4. cxd5 {[%clk 0:02:52]}  exd5 {[%clk 0:02:58]} 5. Nc3 {[%clk 0:02:53]}  c6 {[%clk 0:02:58]} 6. Bg5 {[%clk 0:02:53]}  h6 {[%clk 0:02:49]} 7. Bxf6 {[%clk 0:02:52]}  Qxf6 {[%clk 0:02:49]} 8. e3 {[%clk 0:02:53]}  Bd6 {[%clk 0:02:48]} 9. Be2 {[%clk 0:02:53]}  O-O {[%clk 0:02:48]} 10. O-O {[%clk 0:02:53]}  a5 {[%clk 0:02:49]} 11. Rc1 {[%clk 0:02:39]}  Nd7 {[%clk 0:02:47]} 12. Na4 {[%clk 0:02:34]}  Qe7 {[%clk 0:02:46]} 13. Qc2 {[%clk 0:02:33]}  Nf6 {[%clk 0:02:45]} 14. Nb6 {[%clk 0:02:29]}  Ra7 {[%clk 0:02:46]} 15. Nxc8 {[%clk 0:02:29]}  Rxc8 {[%clk 0:02:46]} 16. Bd3 {[%clk 0:02:25]}  Raa8 {[%clk 0:02:46]} 17. Rfd1 {[%clk 0:02:11]}  g6 {[%clk 0:02:46]} 18. a3 {[%clk 0:02:01]}  Kg7 {[%clk 0:02:45]} 19. Qb3 {[%clk 0:02:00]}  h5 {[%clk 0:02:41]} 20. Qc3 {[%clk 0:01:53]}  Re8 {[%clk 0:02:32]} 21. Rb1 {[%clk 0:01:50]}  Qc7 {[%clk 0:02:15]} 22. Rdc1 {[%clk 0:01:47]}  Ne4 {[%clk 0:02:14]} 23. Qc2 {[%clk 0:01:47]}  f6 {[%clk 0:02:05]} 24. b4 {[%clk 0:01:34]}  axb4 {[%clk 0:02:05]} 25. axb4 {[%clk 0:01:34]}  Ra3 {[%clk 0:01:56]} 26. b5 {[%clk 0:01:28]}  Rc3 {[%clk 0:01:56]} 27. Qd1 {[%clk 0:01:04]}  cxb5 {[%clk 0:01:56]} 28. Bxe4 {[%clk 0:00:34]}  dxe4 {[%clk 0:01:57]} 29. Nd2 {[%clk 0:00:34]}  b4 {[%clk 0:01:55]} 30. h3 {[%clk 0:00:30]}  f5 {[%clk 0:01:53]} 31. Nb3 {[%clk 0:00:28]}  Rc8 {[%clk 0:01:53]} 32. Rxc3 {[%clk 0:00:22]}  bxc3 {[%clk 0:01:53]} 33. Qc2 {[%clk 0:00:19]}  b6 {[%clk 0:01:50]} 34. Rd1 {[%clk 0:00:16]}  Kh6 {[%clk 0:01:47]} 35. d5 {[%clk 0:00:16]}  Qc4 {[%clk 0:01:47]} 36. Rd4 {[%clk 0:00:15]}  Qc7 {[%clk 0:01:40]} 37. g4 {[%clk 0:00:15]}  b5 {[%clk 0:01:37]} 38. Qe2 {[%clk 0:00:12]}  c2 {[%clk 0:01:35]} 39. Nc1 {[%clk 0:00:12]}  Ba3 {[%clk 0:01:19]} 0-1


[Site "https://www.chess.com"]

[Event "Titled Tuesday Blitz November 29 Early 2022"]
[White "Putnam, Liam"]
[Black "Amin-Erdene, Bayanmunkh"]
[WhiteFideId "30938279"]
[BlackFideId "4903161"]
[WhiteElo "2082"]
[BlackElo "1447"]
[Result "1-0"]
[Round "06"]
[TimeControl "180+1"]
[Date "2022.11.30"]
[WhiteClock "0:00:32"]
[BlackClock "0:00:02"]

1. d4 {[%clk 0:03:00]}  Nf6 {[%clk 0:02:59]} 2. c4 {[%clk 0:03:00]}  g6 {[%clk 0:02:59]} 3. Nc3 {[%clk 0:03:01]}  Bg7 {[%clk 0:03:00]} 4. e4 {[%clk 0:03:01]}  d6 {[%clk 0:03:00]} 5. Nf3 {[%clk 0:03:00]}  O-O {[%clk 0:03:00]} 6. Be2 {[%clk 0:03:01]}  e5 {[%clk 0:03:00]} 7. O-O {[%clk 0:03:02]}  exd4 {[%clk 0:03:01]} 8. Nxd4 {[%clk 0:03:02]}  Re8 {[%clk 0:03:01]} 9. f3 {[%clk 0:03:03]}  c6 {[%clk 0:03:01]} 10. Kh1 {[%clk 0:02:56]}  Nbd7 {[%clk 0:03:00]} 11. Bf4 {[%clk 0:02:47]}  Nh5 {[%clk 0:02:58]} 12. Bxd6 {[%clk 0:02:39]}  Qf6 {[%clk 0:02:58]} 13. Nb3 {[%clk 0:02:35]}  Nf4 {[%clk 0:02:54]} 14. c5 {[%clk 0:02:24]}  a5 {[%clk 0:02:47]} 15. a4 {[%clk 0:02:19]}  Ne5 {[%clk 0:02:38]} 16. g3 {[%clk 0:02:14]}  Nxe2 {[%clk 0:02:35]} 17. Qxe2 {[%clk 0:02:15]}  Qe6 {[%clk 0:02:27]} 18. Nd4 {[%clk 0:02:09]}  Qc4 {[%clk 0:02:25]} 19. Bxe5 {[%clk 0:01:57]}  Qxe2 {[%clk 0:02:22]} 20. Ndxe2 {[%clk 0:01:58]}  Bxe5 {[%clk 0:02:10]} 21. Rfd1 {[%clk 0:01:58]}  Be6 {[%clk 0:02:04]} 22. Nd4 {[%clk 0:01:55]}  Bc4 {[%clk 0:02:00]} 23. Rd2 {[%clk 0:01:55]}  Bf6 {[%clk 0:01:36]} 24. Rad1 {[%clk 0:01:55]}  Be7 {[%clk 0:01:29]} 25. Rc1 {[%clk 0:01:42]}  Bxc5 {[%clk 0:01:19]} 26. Nd1 {[%clk 0:01:42]}  Bb4 {[%clk 0:01:11]} 27. Nc3 {[%clk 0:01:30]}  Rad8 {[%clk 0:01:09]} 28. Rcd1 {[%clk 0:01:30]}  Rd7 {[%clk 0:00:53]} 29. Nc2 {[%clk 0:01:27]}  Rxd2 {[%clk 0:00:52]} 30. Rxd2 {[%clk 0:01:28]}  Bb3 {[%clk 0:00:49]} 31. Nd4 {[%clk 0:01:23]}  Bxc3 {[%clk 0:00:46]} 32. bxc3 {[%clk 0:01:23]}  Bxa4 {[%clk 0:00:47]} 33. Ra2 {[%clk 0:01:22]}  Bd1 {[%clk 0:00:42]} 34. Rxa5 {[%clk 0:01:15]}  b5 {[%clk 0:00:31]} 35. Ra1 {[%clk 0:01:13]}  Ba4 {[%clk 0:00:27]} 36. Nxc6 {[%clk 0:01:13]}  Kg7 {[%clk 0:00:26]} 37. c4 {[%clk 0:01:07]}  Rc8 {[%clk 0:00:23]} 38. cxb5 {[%clk 0:01:07]}  Bxb5 {[%clk 0:00:21]} 39. Nd4 {[%clk 0:01:06]}  Rc5 {[%clk 0:00:17]} 40. Ra7 {[%clk 0:00:58]}  Kf8 {[%clk 0:00:14]} 41. Kg2 {[%clk 0:00:55]}  Bc4 {[%clk 0:00:13]} 42. Rb7 {[%clk 0:00:49]}  Bd3 {[%clk 0:00:13]} 43. Rb2 {[%clk 0:00:47]}  Rc4 {[%clk 0:00:13]} 44. Nb5 {[%clk 0:00:42]}  Rc1 {[%clk 0:00:12]} 45. Nd6 {[%clk 0:00:41]}  Bf1+ {[%clk 0:00:12]} 46. Kf2 {[%clk 0:00:40]}  Bh3 {[%clk 0:00:13]} 47. Nb5 {[%clk 0:00:36]}  Rh1 {[%clk 0:00:10]} 48. Ke3 {[%clk 0:00:36]}  Rf1 {[%clk 0:00:09]} 49. Nd4 {[%clk 0:00:35]}  h5 {[%clk 0:00:07]} 50. e5 {[%clk 0:00:34]}  Re1+ {[%clk 0:00:07]} 51. Re2 {[%clk 0:00:35]}  Ra1 {[%clk 0:00:05]} 52. f4 {[%clk 0:00:34]}  Ra3+ {[%clk 0:00:05]} 53. Kf2 {[%clk 0:00:34]}  Bg4 {[%clk 0:00:06]} 54. Rb2 {[%clk 0:00:33]}  Rd3 {[%clk 0:00:05]} 55. Nb5 {[%clk 0:00:30]}  Rf3+ {[%clk 0:00:05]} 56. Kg2 {[%clk 0:00:31]}  Re3 {[%clk 0:00:05]} 57. Nd6 {[%clk 0:00:31]}  Kg7 {[%clk 0:00:05]} 58. Kf2 {[%clk 0:00:30]}  Rf3+ {[%clk 0:00:05]} 59. Kg1 {[%clk 0:00:31]}  Re3 {[%clk 0:00:05]} 60. Rb7 {[%clk 0:00:32]}  Be6 {[%clk 0:00:04]} 61. Ne8+ {[%clk 0:00:32]}  Kf8 {[%clk 0:00:04]} 62. Nf6 {[%clk 0:00:32]}  Kg7 {[%clk 0:00:04]} 63. Rb8 {[%clk 0:00:32]}  h4 {[%clk 0:00:02]} 64. Rg8+ {[%clk 0:00:31]}  Kh6 {[%clk 0:00:02]} 65. g4 {[%clk 0:00:32]} 1-0


[Site "https://www.chess.com"]

[Event "Titled Tuesday Blitz November 29 Early 2022"]
[White "Putri, Regita Desyari"]
[Black "Arbunic Castro, Giovanna"]
[WhiteFideId "7109083"]
[BlackFideId "3400549"]
[WhiteElo "1930"]
[BlackElo "1935"]
[Result "1-0"]
[Round "06"]
[TimeControl "180+1"]
[Date "2022.11.30"]
[WhiteClock "0:01:56"]
[BlackClock "0:01:14"]

1. e4 {[%clk 0:02:57]}  g6 {[%clk 0:02:56]} 2. d4 {[%clk 0:02:56]}  Bg7 {[%clk 0:02:54]} 3. Nc3 {[%clk 0:02:56]}  c5 {[%clk 0:02:54]} 4. Nf3 {[%clk 0:02:55]}  Qa5 {[%clk 0:02:53]} 5. Bc4 {[%clk 0:02:41]}  cxd4 {[%clk 0:02:41]} 6. Nxd4 {[%clk 0:02:40]}  Qc5 {[%clk 0:02:40]} 7. Bxf7+ {[%clk 0:02:24]}  Kxf7 {[%clk 0:02:39]} 8. Be3 {[%clk 0:02:23]}  Qc7 {[%clk 0:02:20]} 9. O-O {[%clk 0:02:21]}  a6 {[%clk 0:02:19]} 10. Nd5 {[%clk 0:02:21]}  Qd8 {[%clk 0:02:16]} 11. Nb3 {[%clk 0:02:19]}  Nf6 {[%clk 0:02:14]} 12. Nb6 {[%clk 0:02:19]}  Nc6 {[%clk 0:01:59]} 13. Nxa8 {[%clk 0:02:15]}  Nxe4 {[%clk 0:01:54]} 14. Qd5+ {[%clk 0:02:13]}  e6 {[%clk 0:01:34]} 15. Qxe4 {[%clk 0:02:13]}  d5 {[%clk 0:01:33]} 16. Qf3+ {[%clk 0:02:13]}  Bf6 {[%clk 0:01:28]} 17. Nb6 {[%clk 0:02:12]}  d4 {[%clk 0:01:26]} 18. Nxc8 {[%clk 0:02:10]}  dxe3 {[%clk 0:01:22]} 19. fxe3 {[%clk 0:02:02]}  Ne5 {[%clk 0:01:16]} 20. Nd6+ {[%clk 0:01:59]}  Qxd6 {[%clk 0:01:14]} 21. Qxf6+ {[%clk 0:01:59]}  Kg8 {[%clk 0:01:14]} 22. Rad1 {[%clk 0:01:56]} 1-0


[Site "https://www.chess.com"]

[Event "Titled Tuesday Blitz November 29 Early 2022"]
[White "Ravot, Sylvain"]
[Black "Broca Jimenez, Fernando"]
[WhiteFideId "627763"]
[BlackFideId "5104742"]
[WhiteElo "2195"]
[BlackElo "2062"]
[Result "1-0"]
[Round "06"]
[TimeControl "180+1"]
[Date "2022.11.30"]
[WhiteClock "0:00:02"]
[BlackClock "0:00:03"]

1. e4 {[%clk 0:03:00]}  c5 {[%clk 0:02:49]} 2. Nf3 {[%clk 0:02:59]}  g6 {[%clk 0:02:49]} 3. d4 {[%clk 0:02:54]}  cxd4 {[%clk 0:02:50]} 4. Qxd4 {[%clk 0:02:54]}  Nf6 {[%clk 0:02:49]} 5. Nc3 {[%clk 0:02:53]}  Nc6 {[%clk 0:02:45]} 6. Qa4 {[%clk 0:02:52]}  Bg7 {[%clk 0:02:43]} 7. e5 {[%clk 0:02:43]}  Ng8 {[%clk 0:02:43]} 8. Bf4 {[%clk 0:02:41]}  Nh6 {[%clk 0:02:40]} 9. O-O-O {[%clk 0:02:39]}  O-O {[%clk 0:02:37]} 10. Bc4 {[%clk 0:02:25]}  Qa5 {[%clk 0:02:36]} 11. Qb3 {[%clk 0:02:05]}  Ng4 {[%clk 0:02:26]} 12. Rd5 {[%clk 0:01:37]}  Qb6 {[%clk 0:02:23]} 13. Qxb6 {[%clk 0:01:33]}  axb6 {[%clk 0:02:23]} 14. h3 {[%clk 0:01:19]}  Nh6 {[%clk 0:01:37]} 15. Re1 {[%clk 0:01:13]}  Na5 {[%clk 0:01:31]} 16. Bb5 {[%clk 0:01:07]}  Nc6 {[%clk 0:01:19]} 17. Kb1 {[%clk 0:01:02]}  e6 {[%clk 0:00:53]} 18. Rdd1 {[%clk 0:00:59]}  Nf5 {[%clk 0:00:52]} 19. g4 {[%clk 0:00:40]}  Nfe7 {[%clk 0:00:49]} 20. Bg5 {[%clk 0:00:30]}  Re8 {[%clk 0:00:46]} 21. Bf6 {[%clk 0:00:25]}  Ra5 {[%clk 0:00:34]} 22. Rd2 {[%clk 0:00:13]}  Nd5 {[%clk 0:00:27]} 23. Nxd5 {[%clk 0:00:12]}  Rxb5 {[%clk 0:00:27]} 24. Nc7 {[%clk 0:00:12]}  Bf8 {[%clk 0:00:13]} 25. Nxb5 {[%clk 0:00:09]}  Be7 {[%clk 0:00:13]} 26. Nd6 {[%clk 0:00:08]}  Rf8 {[%clk 0:00:11]} 27. Nxc8 {[%clk 0:00:04]}  Rxc8 {[%clk 0:00:12]} 28. Bxe7 {[%clk 0:00:05]}  Nxe7 {[%clk 0:00:12]} 29. Rxd7 {[%clk 0:00:05]}  Nd5 {[%clk 0:00:13]} 30. a3 {[%clk 0:00:04]}  b5 {[%clk 0:00:12]} 31. Rxb7 {[%clk 0:00:04]}  Rc5 {[%clk 0:00:11]} 32. Nd4 {[%clk 0:00:03]}  b4 {[%clk 0:00:08]} 33. axb4 {[%clk 0:00:02]}  Rc4 {[%clk 0:00:09]} 34. c3 {[%clk 0:00:02]}  Kg7 {[%clk 0:00:07]} 35. Kc2 {[%clk 0:00:02]}  Kg8 {[%clk 0:00:07]} 36. Kb3 {[%clk 0:00:02]}  Rc8 {[%clk 0:00:06]} 37. c4 {[%clk 0:00:02]}  Nf4 {[%clk 0:00:05]} 38. Re3 {[%clk 0:00:02]}  Ng2 {[%clk 0:00:04]} 39. Rg3 {[%clk 0:00:02]}  Nf4 {[%clk 0:00:04]} 40. Rc3 {[%clk 0:00:01]}  Kg7 {[%clk 0:00:02]} 41. Rd7 {[%clk 0:00:01]}  Ra8 {[%clk 0:00:01]} 42. Rf3 {[%clk 0:00:01]}  Rb8 {[%clk 0:00:02]} 43. Rxf4 {[%clk 0:00:01]}  Rc8 {[%clk 0:00:03]} 44. Rfxf7+ {[%clk 0:00:01]}  Kh6 {[%clk 0:00:03]} 45. f4 {[%clk 0:00:02]}  g5 {[%clk 0:00:02]} 46. Rxh7+ {[%clk 0:00:02]}  Kg6 {[%clk 0:00:03]} 47. Rdg7# {[%clk 0:00:02]} 1-0


[Site "https://www.chess.com"]

[Event "Titled Tuesday Blitz November 29 Early 2022"]
[White "Remizov, Yaroslav"]
[Black "Leenhouts, Koen"]
[WhiteFideId "34134015"]
[BlackFideId "1008439"]
[WhiteElo "2414"]
[BlackElo "2409"]
[Result "0-1"]
[Round "06"]
[TimeControl "180+1"]
[Date "2022.11.30"]
[WhiteClock "0:00:14"]
[BlackClock "0:00:05"]

1. d4 {[%clk 0:02:59]}  d5 {[%clk 0:02:58]} 2. Nf3 {[%clk 0:02:59]}  Nf6 {[%clk 0:02:57]} 3. c4 {[%clk 0:02:58]}  e6 {[%clk 0:02:57]} 4. g3 {[%clk 0:02:54]}  Be7 {[%clk 0:02:55]} 5. Bg2 {[%clk 0:02:54]}  O-O {[%clk 0:02:55]} 6. O-O {[%clk 0:02:54]}  dxc4 {[%clk 0:02:56]} 7. Ne5 {[%clk 0:02:51]}  Nc6 {[%clk 0:02:54]} 8. Nxc6 {[%clk 0:02:47]}  bxc6 {[%clk 0:02:55]} 9. Bxc6 {[%clk 0:02:47]}  Rb8 {[%clk 0:02:52]} 10. Na3 {[%clk 0:02:47]}  Bxa3 {[%clk 0:02:40]} 11. bxa3 {[%clk 0:02:48]}  Nd5 {[%clk 0:02:40]} 12. Qc2 {[%clk 0:02:32]}  Rb6 {[%clk 0:02:28]} 13. Qxc4 {[%clk 0:02:19]}  Ba6 {[%clk 0:02:27]} 14. Qc2 {[%clk 0:02:15]}  Bxe2 {[%clk 0:02:22]} 15. Qxe2 {[%clk 0:02:00]}  Rxc6 {[%clk 0:02:21]} 16. Bd2 {[%clk 0:01:57]}  Qd6 {[%clk 0:02:17]} 17. Qf3 {[%clk 0:01:49]}  Ra6 {[%clk 0:02:10]} 18. Bc1 {[%clk 0:01:40]}  Rb8 {[%clk 0:02:00]} 19. Rd1 {[%clk 0:01:35]}  h6 {[%clk 0:01:58]} 20. Qe2 {[%clk 0:01:28]}  Nc3 {[%clk 0:01:50]} 21. Qe1 {[%clk 0:01:26]}  Nxd1 {[%clk 0:01:48]} 22. Qxd1 {[%clk 0:01:27]}  c5 {[%clk 0:01:45]} 23. Bf4 {[%clk 0:01:25]}  Qd8 {[%clk 0:01:38]} 24. Bxb8 {[%clk 0:01:22]}  Qxb8 {[%clk 0:01:39]} 25. dxc5 {[%clk 0:01:22]}  Rc6 {[%clk 0:01:34]} 26. Qd4 {[%clk 0:01:16]}  Qb5 {[%clk 0:01:31]} 27. Rc1 {[%clk 0:01:15]}  Qe2 {[%clk 0:01:14]} 28. Qd8+ {[%clk 0:01:12]}  Kh7 {[%clk 0:01:13]} 29. Qd7 {[%clk 0:01:10]}  Qf3 {[%clk 0:00:46]} 30. Qxa7 {[%clk 0:01:09]}  h5 {[%clk 0:00:45]} 31. Qa4 {[%clk 0:01:08]}  e5 {[%clk 0:00:40]} 32. Qc4 {[%clk 0:01:04]}  e4 {[%clk 0:00:30]} 33. a4 {[%clk 0:00:49]}  h4 {[%clk 0:00:28]} 34. Qf1 {[%clk 0:00:34]}  e3 {[%clk 0:00:22]} 35. Qd3+ {[%clk 0:00:33]}  Rg6 {[%clk 0:00:12]} 36. Qxe3 {[%clk 0:00:32]}  Qc6 {[%clk 0:00:13]} 37. a5 {[%clk 0:00:29]}  h3 {[%clk 0:00:12]} 38. f3 {[%clk 0:00:27]}  Re6 {[%clk 0:00:12]} 39. Qf4 {[%clk 0:00:24]}  Qb5 {[%clk 0:00:06]} 40. Qh4+ {[%clk 0:00:20]}  Rh6 {[%clk 0:00:06]} 41. Qe4+ {[%clk 0:00:19]}  Rg6 {[%clk 0:00:07]} 42. c6 {[%clk 0:00:15]}  Qb2 {[%clk 0:00:07]} 43. Qe3 {[%clk 0:00:14]}  Qg2# {[%clk 0:00:05]} 0-1


[Site "https://www.chess.com"]

[Event "Titled Tuesday Blitz November 29 Early 2022"]
[White "Riehle, Marco"]
[Black "Silva, Miguel Antonio Neto"]
[WhiteFideId "12904392"]
[BlackFideId "1911929"]
[WhiteElo "2462"]
[BlackElo "2223"]
[Result "1-0"]
[Round "06"]
[TimeControl "180+1"]
[Date "2022.11.30"]
[WhiteClock "0:02:39"]
[BlackClock "0:02:02"]

1. e4 {[%clk 0:03:00]}  c5 {[%clk 0:02:58]} 2. a3 {[%clk 0:03:00]}  Nf6 {[%clk 0:02:56]} 3. e5 {[%clk 0:03:00]}  Nd5 {[%clk 0:02:57]} 4. c4 {[%clk 0:03:01]}  Nc7 {[%clk 0:02:56]} 5. b4 {[%clk 0:02:59]}  d6 {[%clk 0:02:47]} 6. Nf3 {[%clk 0:02:58]}  Nc6 {[%clk 0:02:43]} 7. Bb2 {[%clk 0:02:57]}  Ne6 {[%clk 0:02:36]} 8. Be2 {[%clk 0:02:55]}  dxe5 {[%clk 0:02:25]} 9. Nxe5 {[%clk 0:02:54]}  Ncd4 {[%clk 0:02:23]} 10. O-O {[%clk 0:02:51]}  Qc7 {[%clk 0:02:21]} 11. Nf3 {[%clk 0:02:49]}  b6 {[%clk 0:02:16]} 12. Nc3 {[%clk 0:02:44]}  Bb7 {[%clk 0:02:13]} 13. Nd5 {[%clk 0:02:44]}  Bxd5 {[%clk 0:02:10]} 14. cxd5 {[%clk 0:02:45]}  Nxf3+ {[%clk 0:02:07]} 15. Bxf3 {[%clk 0:02:44]}  Nd4 {[%clk 0:02:06]} 16. Bxd4 {[%clk 0:02:40]}  cxd4 {[%clk 0:02:06]} 17. d6 {[%clk 0:02:41]}  Qb8 {[%clk 0:02:03]} 18. Qa4+ {[%clk 0:02:40]}  b5 {[%clk 0:02:02]} 19. Bc6+ {[%clk 0:02:39]}  Kd8 {[%clk 0:02:02]} 20. Qa5+ {[%clk 0:02:39]} 1-0


[Site "https://www.chess.com"]